lending/lending_fUSD_20250425
["ID","MTS","AMOUNT","RATE_DAILY","PERIOD"]
[358918204,1745545201137,-500.0,0.00050684,30]
[358918205,1745545201175,-1976.56,0.00050684,30]
[358918206,1745545201212,-653.33,0.00050684,30]
[358918207,1745545201248,-500.0,0.00050684,30]
[358918208,1745545201284,-596.77,0.00050684,30]
[358918209,1745545201320,-500.0,0.00050684,30]
[358918210,1745545201355,-1112.33,0.00050684,30]
[358918211,1745545201394,-500.0,0.00050684,30]
[358918212,1745545201631,-841.68,0.00050684,30]
[358918213,1745545201673,-823.66,0.00050684,30]
[358918214,1745545201714,-500.0,0.00050684,30]
[358918215,1745545201755,-500.0,0.00050684,30]
[358918216,1745545201796,-500.0,0.00050684,30]
[358918217,1745545201838,-1808.75,0.00050684,30]
[358918218,1745545201882,-500.0,0.00050684,30]
[358918219,1745545201928,-1821.84,0.00050684,30]
[358918220,1745545201966,-510.31779385,0.00050684,30]
[358918221,1745545202006,-1313.12,0.00050684,30]
[358918222,1745545202046,-500.0,0.00050684,30]
[358918223,1745545202086,-500.0,0.00050684,30]
[358918224,1745545202125,-500.0,0.00050684,30]
[358918225,1745545202165,-672.15,0.00050684,30]
[358918226,1745545202204,-1880.56,0.00050684,30]
[358918227,1745545202245,-893.18,0.00050684,30]
[358918228,1745545202284,-500.0,0.00050684,30]
[358918229,1745545202324,-500.0,0.00050684,30]
[358918230,1745545202362,-500.0,0.00050684,30]
[358918231,1745545202400,-500.0,0.00050684,30]
[358918232,1745545202438,-500.0,0.00050684,30]
[358918233,1745545202477,-219.03813013,0.00050684,30]
[358918234,1745545202515,-500.0,0.00050684,30]
[358918235,1745545202552,-500.0,0.00050684,30]
[358918236,1745545202590,-500.0,0.00050684,30]
[358918237,1745545202628,-500.0,0.00050684,30]
[358918238,1745545202664,-500.0,0.00050684,30]
[358918239,1745545202702,-1073.32,0.00050684,30]
[358918240,1745545202741,-1524.36,0.00050684,30]
[358918241,1745545202782,-500.0,0.00050684,30]
[358918242,1745545202822,-1015.49,0.00050684,30]
[358918243,1745545202862,-557.66,0.00050684,30]
[358918244,1745545202902,-966.47,0.00050684,30]
[358918245,1745545202941,-500.0,0.00050684,30]
[358918246,1745545202982,-500.0,0.00050684,30]
[358918247,1745545203021,-500.0,0.00050684,30]
[358918248,1745545203061,-2016.33,0.00050684,30]
[358918249,1745545203106,-500.0,0.00050684,30]
[358918250,1745545203153,-404.20985566,0.00050684,30]
[358918251,1745545203200,-936.5,0.00050684,30]
[358918252,1745545203246,-500.0,0.00050684,30]
[358918253,1745545203294,-2103.74,0.00050684,30]
[358918254,1745545203341,-500.0,0.00050684,30]
[358918255,1745545203388,-1286.01,0.00050684,30]
[358918256,1745545203436,-500.0,0.00050684,30]
[358918257,1745545203484,-500.0,0.00050684,30]
[358918258,1745545203534,-500.0,0.00050684,30]
[358918259,1745545203583,-500.0,0.00050684,30]
[358918260,1745545203632,-500.0,0.00050684,30]
[358918261,1745545203680,-664.11,0.00050684,30]
[358918262,1745545203729,-500.0,0.00050684,30]
[358918263,1745545203778,-500.0,0.00050684,30]
[358918264,1745545203828,-500.0,0.00050684,30]
[358918265,1745545203875,-500.0,0.00050684,30]
[358918266,1745545203923,-796.66,0.00050684,30]
[358918267,1745545203970,-500.0,0.00050684,30]
[358918268,1745545204016,-500.0,0.00050684,30]
[358918269,1745545204064,-500.0,0.00050684,30]
[358918270,1745545204113,-500.0,0.00050684,30]
[358918271,1745545204160,-500.0,0.00050684,30]
[358918272,1745545204207,-2669.76,0.00050684,30]
[358918273,1745545204255,-1999.03,0.00050684,30]
[358918274,1745545204303,-533.3,0.00050684,30]
[358918275,1745545204350,-500.0,0.00050684,30]
[358918276,1745545204399,-500.0,0.00050684,30]
[358918277,1745545204450,-500.0,0.00050684,30]
[358918278,1745545204502,-1636.56,0.00050684,30]
[358918279,1745545204571,-500.0,0.00050684,30]
[358918280,1745545204625,-500.0,0.00050684,30]
[358918281,1745545204674,-500.0,0.00050684,30]
[358918282,1745545204722,-500.0,0.00050684,30]
[358918283,1745545204772,-686.42,0.00050684,30]
[358918284,1745545204822,-500.0,0.00050684,30]
[358918285,1745545204868,-500.0,0.00050684,30]
[358918286,1745545204929,-500.0,0.00050684,30]
[358918287,1745545204990,-300.0,0.00050684,30]
[358918288,1745545205051,-500.0,0.00050684,30]
[358918289,1745545205099,-607.09,0.00050684,30]
[358918290,1745545205146,-1527.68,0.00050684,30]
[358918291,1745545205193,-500.0,0.00050684,30]
[358918292,1745545205240,-476.93296936,0.00050684,30]
[358918293,1745545205287,-1591.81,0.00050684,30]
[358918294,1745545205335,-575.38,0.00050684,30]
[358918295,1745545205383,-500.0,0.00050684,30]
[358918296,1745545205431,-500.0,0.00050684,30]
[358918297,1745545205477,-500.0,0.00050684,30]
[358918298,1745545205524,-601.61549974,0.00050684,30]
[358918299,1745545205571,-500.0,0.00050684,30]
[358918300,1745545205619,-500.0,0.00050684,30]
[358918301,1745545205666,-500.0,0.00050684,30]
[358918302,1745545205713,-1012.07,0.00050684,30]
[358918303,1745545205762,-500.0,0.00050684,30]
[358918304,1745545205809,-1098.37,0.00050684,30]
[358918305,1745545205858,-541.28,0.00050684,30]
[358918306,1745545205906,-1031.74,0.00050684,30]
[358918307,1745545205952,-1116.42,0.00050684,30]
[358918308,1745545206001,-546.69,0.00050684,30]
[358918309,1745545206047,-500.0,0.00050684,30]
[358918310,1745545206093,-500.0,0.00050684,30]
[358918311,1745545206141,-500.0,0.00050684,30]
[358918312,1745545206187,-500.0,0.00050684,30]
[358918313,1745545206233,-500.0,0.00050684,30]
[358918314,1745545206280,-500.0,0.00050684,30]
[358918315,1745545206325,-500.0,0.00050684,30]
[358918316,1745545206576,-1901.47,0.00050684,30]
[358918317,1745545206623,-500.0,0.00050684,30]
[358918318,1745545206670,-559.13518094,0.00050684,30]
[358918319,1745545206717,-500.0,0.00050684,30]
[358918320,1745545206764,-500.0,0.00050684,30]
[358918321,1745545206813,-1000000.0,0.0005075,120]
[358918322,1745545206859,-2110.0,0.00050815,30]
[358918323,1745545206904,-500.0,0.00050958,120]
[358918324,1745545206949,-1132.194193,0.00050958,30]
[358918325,1745545206994,-164.203445,0.00050958,30]
[358918326,1745545207041,-162.96537,0.00050958,30]
[358918327,1745545207091,-9063.631094,0.00050958,30]
[358918328,1745545207145,-1167.008109,0.00050958,30]
[358918329,1745545207205,-500.0,0.00050958,30]
[358918330,1745545207256,-500.0,0.00050958,30]
[358918331,1745545207313,-500.0,0.00050958,30]
[358918332,1745545207360,-263.76920976,0.00050958,30]
[358918333,1745545207422,-500.0,0.00050958,30]
[358918334,1745545207469,-500.0,0.00050958,30]
[358918335,1745545207515,-1160.03,0.00050958,30]
[358918336,1745545207572,-500.0,0.00050958,30]
[358918337,1745545207616,-640.57209908,0.00050958,30]
[358918338,1745545207662,-500.0,0.00050958,30]
[358918339,1745545207713,-500.0,0.00050958,30]
[358918340,1745545207759,-868.05,0.00050958,30]
[358918341,1745545207806,-1226.82,0.00050958,30]
[358918342,1745545207859,-1538.93,0.00050958,30]
[358918343,1745545207904,-702.4,0.00050958,30]
[358918344,1745545207949,-500.24,0.00050958,30]
[358918345,1745545207994,-500.0,0.00050958,30]
[358918346,1745545208039,-848.12,0.00050958,30]
[358918347,1745545208085,-500.0,0.00050958,30]
[358918348,1745545208130,-582.42,0.00050958,30]
[358918349,1745545208176,-581.75,0.00050958,30]
[358918350,1745545208222,-500.0,0.00050958,30]
[358918351,1745545208267,-500.0,0.00050958,30]
[358918352,1745545208312,-500.0,0.00050958,30]
[358918353,1745545208359,-500.0,0.00050958,30]
[358918354,1745545208405,-500.0,0.00050958,30]
[358918355,1745545208453,-500.0,0.00050958,30]
[358918356,1745545208501,-522.07,0.00050958,30]
[358918357,1745545208549,-523.01,0.00050958,30]
[358918358,1745545208598,-538.77,0.00050958,30]
[358918359,1745545208645,-644.39,0.00050958,30]
[358918360,1745545208691,-543.02,0.00050958,30]
[358918361,1745545208738,-500.0,0.00050958,30]
[358918362,1745545208786,-500.0,0.00050958,30]
[358918363,1745545208833,-504.91,0.00050958,30]
[358918364,1745545208880,-649.75,0.00050958,30]
[358918365,1745545208929,-262.22452981,0.00050958,30]
[358918366,1745545208975,-634.13,0.00050958,30]
[358918367,1745545209020,-500.0,0.00050958,30]
[358918368,1745545209065,-917.14,0.00050958,30]
[358918369,1745545209111,-505.51,0.00050958,30]
[358918370,1745545209157,-606.78,0.00050958,30]
[358918371,1745545209203,-500.0,0.00050958,30]
[358918372,1745545209246,-500.0,0.00050958,30]
[358918373,1745545209292,-500.0,0.00050958,30]
[358918374,1745545209339,-500.0,0.00050958,30]
[358918375,1745545209385,-595.29,0.00050958,30]
[358918376,1745545209432,-792.47,0.00050958,30]
[358918377,1745545209478,-500.0,0.00050958,30]
[358918378,1745545209523,-500.0,0.00050958,30]
[358918379,1745545209569,-500.0,0.00050958,30]
[358918380,1745545209615,-754.49,0.00050958,30]
[358918381,1745545209661,-543.78,0.00050958,30]
[358918382,1745545209707,-500.0,0.00050958,30]
[358918383,1745545209752,-619.56,0.00050958,30]
[358918384,1745545209798,-540.28,0.00050958,30]
[358918385,1745545209844,-544.0,0.00050958,30]
[358918386,1745545209893,-500.0,0.00050958,30]
[358918387,1745545209939,-500.0,0.00050958,30]
[358918388,1745545209985,-537.72,0.00050958,30]
[358918389,1745545210031,-500.0,0.00050958,30]
[358918390,1745545210079,-500.0,0.00050958,30]
[358918391,1745545210125,-500.0,0.00050958,30]
[358918392,1745545210170,-500.0,0.00050958,30]
[358918393,1745545210214,-686.33,0.00050958,30]
[358918394,1745545210259,-500.0,0.00050958,30]
[358918395,1745545210303,-569.6,0.00050958,30]
[358918396,1745545210346,-1556.23,0.00050958,30]
[358918397,1745545210390,-500.0,0.00050958,30]
[358918398,1745545210434,-500.0,0.00050958,30]
[358918399,1745545210478,-500.0,0.00050958,30]
[358918400,1745545210522,-500.0,0.00050958,30]
[358918401,1745545210566,-500.0,0.00050958,30]
[358918402,1745545210611,-1417.1,0.00050958,30]
[358918403,1745545210656,-500.0,0.00050958,30]
[358918404,1745545210699,-500.0,0.00050958,30]
[358918405,1745545210745,-640.19,0.00050958,30]
[358918406,1745545210791,-500.0,0.00050958,30]
[358918407,1745545210836,-500.0,0.00050958,30]
[358918408,1745545210884,-500.0,0.00050958,30]
[358918409,1745545210931,-1349.12,0.00050958,30]
[358918410,1745545210975,-1073.85,0.00050958,30]
[358918411,1745545211021,-500.0,0.00050958,30]
[358918412,1745545211065,-500.0,0.00050958,30]
[358918413,1745545211111,-500.0,0.00050958,30]
[358918414,1745545211157,-500.0,0.00050958,30]
[358918415,1745545211220,-500.0,0.00050958,30]
[358918416,1745545211281,-542.53,0.00050958,30]
[358918417,1745545211354,-1692.22,0.00050958,30]
[358918418,1745545211401,-500.0,0.00050958,30]
[358918419,1745545211447,-896.35,0.00050958,30]
[358918420,1745545211697,-500.0,0.00050958,30]
[358918421,1745545211763,-500.0,0.00050958,30]
[358918422,1745545211808,-500.0,0.00050958,30]
[358918423,1745545211855,-500.0,0.00050958,30]
[358918424,1745545211897,-500.0,0.00050958,30]
[358918425,1745545211937,-500.0,0.00050958,30]
[358918426,1745545211979,-500.0,0.00050958,30]
[358918427,1745545212020,-500.0,0.00050958,30]
[358918428,1745545212062,-994.55,0.00050958,30]
[358918429,1745545212104,-500.0,0.00050958,30]
[358918430,1745545212148,-500.0,0.00050958,30]
[358918431,1745545212191,-500.0,0.00050958,30]
[358918432,1745545212234,-542.37,0.00050958,30]
[358918433,1745545212277,-500.0,0.00050958,30]
[358918434,1745545212320,-500.0,0.00050958,30]
[358918435,1745545212360,-500.0,0.00050958,30]
[358918436,1745545212401,-546.08,0.00050958,30]
[358918437,1745545212442,-500.0,0.00050958,30]
[358918438,1745545212483,-2439.89,0.00050958,30]
[358918439,1745545212526,-500.0,0.00050958,30]
[358918440,1745545212568,-500.0,0.00050958,30]
[358918441,1745545212612,-500.0,0.00050958,30]
[358918442,1745545212656,-500.0,0.00050958,30]
[358918443,1745545212700,-584.43,0.00050958,30]
[358918444,1745545212743,-500.0,0.00050958,30]
[358918445,1745545212785,-572.28333625,0.00050958,30]
[358918446,1745545212830,-939.8,0.00050958,30]
[358918447,1745545212874,-2036.8,0.00050958,30]
[358918448,1745545212919,-500.0,0.00050958,30]
[358918449,1745545212973,-500.0,0.00050958,30]
[358918450,1745545213035,-517.24,0.00050958,30]
[358918451,1745545213100,-500.0,0.00050958,30]
[358918452,1745545213149,-500.0,0.00050958,30]
[358918453,1745545213215,-566.72,0.00050958,30]
[358918454,1745545213259,-500.0,0.00050958,30]
[358918455,1745545213301,-500.0,0.00050958,30]
[358918456,1745545213346,-1510.65,0.00050958,30]
[358918457,1745545213389,-1008.08,0.00050958,30]
[358918458,1745545213431,-500.0,0.00050958,30]
[358918459,1745545213475,-1011.43,0.00050958,30]
[358918460,1745545213519,-500.0,0.00050958,30]
[358918461,1745545213564,-730.49,0.00050958,30]
[358918462,1745545213609,-500.0,0.00050958,30]
[358918463,1745545213655,-500.0,0.00050958,30]
[358918464,1745545213699,-528.27,0.00050958,30]
[358918465,1745545213747,-536.63655283,0.00050958,30]
[358918466,1745545213793,-769.43,0.00050958,30]
[358918467,1745545213840,-500.0,0.00050958,30]
[358918468,1745545213889,-694.5,0.00050958,30]
[358918469,1745545213935,-500.0,0.00050958,30]
[358918470,1745545213979,-500.0,0.00050958,30]
[358918471,1745545214023,-858.57,0.00050958,30]
[358918472,1745545214069,-500.0,0.00050958,30]
[358918473,1745545214115,-763.88,0.00050958,30]
[358918474,1745545214158,-727.33,0.00050958,30]
[358918475,1745545214205,-875.49,0.00050958,120]
[358918476,1745545214251,-500.0,0.00050958,30]
[358918477,1745545214298,-562.16808376,0.00050958,30]
[358918478,1745545214344,-500.0,0.00050958,30]
[358918479,1745545214390,-500.0,0.00050958,30]
[358918480,1745545214435,-500.0,0.00050958,30]
[358918481,1745545214478,-500.0,0.00050958,30]
[358918482,1745545214523,-719.69,0.00050958,30]
[358918483,1745545214569,-742.58,0.00050958,30]
[358918484,1745545214614,-500.0,0.00050958,30]
[358918485,1745545214659,-695.81,0.00050958,30]
[358918486,1745545214705,-500.0,0.00050958,30]
[358918487,1745545214750,-500.0,0.00050958,30]
[358918488,1745545214797,-663.3,0.00050958,30]
[358918489,1745545214843,-500.0,0.00050958,30]
[358918490,1745545214894,-618.78,0.00050958,30]
[358918491,1745545214939,-500.0,0.00050958,30]
[358918492,1745545214985,-2108.6,0.00050958,30]
[358918493,1745545215031,-1442.41,0.00050958,30]
[358918494,1745545215077,-599.18,0.00050958,30]
[358918495,1745545215124,-3086.13,0.00050958,30]
[358918496,1745545215169,-500.0,0.00050958,30]
[358918497,1745545215213,-1593.79,0.00050958,30]
[358918498,1745545215258,-500.0,0.00050958,30]
[358918499,1745545215302,-795.15,0.00050958,30]
[358918500,1745545215345,-522.13,0.00050958,30]
[358918501,1745545215388,-500.0,0.00050958,30]
[358918502,1745545215431,-500.0,0.00050958,30]
[358918503,1745545215475,-500.0,0.00050958,30]
[358918504,1745545215518,-1268.35,0.00050958,30]
[358918505,1745545215562,-1107.8,0.00050958,30]
[358918506,1745545215605,-500.0,0.00050958,30]
[358918507,1745545215649,-879.02,0.00050958,30]
[358918508,1745545215692,-500.0,0.00050958,30]
[358918509,1745545215737,-500.0,0.00050958,30]
[358918510,1745545215782,-500.0,0.00050958,30]
[358918511,1745545215825,-391.96635093,0.00050958,30]
[358918512,1745545215871,-858.84,0.00050958,30]
[358918513,1745545215917,-765.14,0.00050958,30]
[358918514,1745545215963,-500.0,0.00050958,30]
[358918515,1745545216010,-500.0,0.00050958,30]
[358918516,1745545216055,-1773.32,0.00050958,30]
[358918517,1745545216100,-1111.7,0.00050958,30]
[358918518,1745545216145,-1976.47,0.00050958,30]
[358918519,1745545216190,-500.0,0.00050958,30]
[358918520,1745545216236,-509.56,0.00050958,30]
[358918521,1745545216279,-500.0,0.00050958,30]
[358918522,1745545216322,-500.0,0.00050958,30]
[358918523,1745545216365,-1140.87,0.00050958,30]
[358918524,1745545216606,-500.0,0.00050958,30]
[358918525,1745545216652,-871.81,0.00050958,30]
[358918526,1745545216699,-657.75,0.00050958,30]
[358918527,1745545216743,-500.0,0.00050958,30]
[358918528,1745545216789,-1613.27,0.00050958,30]
[358918529,1745545216836,-415.51,0.00050958,30]
[358918530,1745545216888,-500.0,0.00050958,30]
[358918531,1745545216949,-500.0,0.00050958,30]
[358918532,1745545216993,-942.33,0.00050958,30]
[358918533,1745545217039,-500.0,0.00050958,30]
[358918534,1745545217083,-1476.33,0.00050958,30]
[358918535,1745545217127,-500.0,0.00050958,30]
[358918536,1745545217172,-1855.1,0.00050958,30]
[358918537,1745545217216,-1456.2,0.00050958,30]
[358918538,1745545217257,-500.0,0.00050958,30]
[358918539,1745545217302,-500.0,0.00050958,30]
[358918540,1745545217345,-827.14,0.00050958,30]
[358918541,1745545217389,-500.0,0.00050958,30]
[358918542,1745545217431,-500.0,0.00050958,30]
[358918543,1745545217474,-500.0,0.00050958,30]
[358918544,1745545217518,-792.6,0.00050958,30]
[358918545,1745545217562,-500.0,0.00050958,30]
[358918546,1745545217607,-1103.01,0.00050958,30]
[358918547,1745545217652,-546.36,0.00050958,30]
[358918548,1745545217697,-500.0,0.00050958,30]
[358918549,1745545217741,-1012.63,0.00050958,30]
[358918550,1745545217786,-500.0,0.00050958,30]
[358918551,1745545217830,-500.0,0.00050958,30]
[358918552,1745545217874,-500.0,0.00050958,30]
[358918553,1745545217919,-500.0,0.00050958,30]
[358918554,1745545217965,-500.0,0.00050958,30]
[358918555,1745545218010,-500.0,0.00050958,30]
[358918556,1745545218055,-1616.8,0.00050958,30]
[358918557,1745545218101,-2124.79,0.00050958,30]
[358918558,1745545218147,-500.0,0.00050958,30]
[358918559,1745545218194,-620.23,0.00050958,30]
[358918560,1745545218241,-781.78,0.00050958,30]
[358918561,1745545218293,-802.61,0.00050958,30]
[358918562,1745545218339,-500.0,0.00050958,30]
[358918563,1745545218382,-500.0,0.00050958,30]
[358918564,1745545218425,-515.47,0.00050958,30]
[358918565,1745545218471,-990.31,0.00050958,30]
[358918566,1745545218519,-610.47,0.00050958,30]
[358918567,1745545218567,-2070.09,0.00050958,30]
[358918568,1745545218615,-1324.47,0.00050958,30]
[358918569,1745545218662,-500.0,0.00050958,30]
[358918570,1745545218709,-500.0,0.00050958,30]
[358918571,1745545218755,-500.0,0.00050958,30]
[358918572,1745545218804,-500.0,0.00050958,30]
[358918573,1745545218852,-350.0,0.00050958,30]
[358918574,1745545218897,-500.0,0.00050958,30]
[358918575,1745545218942,-500.0,0.00050958,30]
[358918576,1745545218987,-1042.75,0.00050958,30]
[358918577,1745545219030,-755.73,0.00050958,30]
[358918578,1745545219073,-1232.59,0.00050958,30]
[358918579,1745545219116,-500.0,0.00050958,30]
[358918580,1745545219160,-767.48,0.00050958,30]
[358918581,1745545219206,-500.0,0.00050958,30]
[358918582,1745545219248,-500.0,0.00050958,30]
[358918583,1745545219290,-2907.59,0.00050958,30]
[358918584,1745545219331,-895.82,0.00050958,30]
[358918585,1745545219373,-2590.97,0.00050958,30]
[358918586,1745545219414,-500.0,0.00050958,30]
[358918587,1745545219457,-1122.52,0.00050958,30]
[358918588,1745545219500,-500.0,0.00050958,30]
[358918589,1745545219543,-543.24,0.00050958,30]
[358918590,1745545219587,-500.0,0.00050958,30]
[358918591,1745545219631,-500.84,0.00050958,30]
[358918592,1745545219677,-500.0,0.00050958,30]
[358918593,1745545219722,-901.52,0.00050958,30]
[358918594,1745545219767,-644.62,0.00050958,30]
[358918595,1745545219811,-1008.41,0.00050958,30]
[358918596,1745545219857,-1503.08,0.00050958,30]
[358918597,1745545219902,-500.0,0.00050958,30]
[358918598,1745545219957,-1147.58,0.00050958,30]
[358918599,1745545220002,-169.583062,0.00050958,30]
[358918600,1745545220046,-1065.37,0.00050958,30]
[358918601,1745545220089,-4526.86,0.00050958,30]
[358918602,1745545220130,-542.69729869,0.00050958,30]
[358918603,1745545220174,-500.0,0.00050958,30]
[358918604,1745545220217,-500.0,0.00050958,30]
[358918605,1745545220259,-500.0,0.00050958,30]
[358918606,1745545220301,-500.0,0.00050958,30]
[358918607,1745545220343,-500.0,0.00050958,30]
[358918608,1745545220385,-593.9,0.00050958,30]
[358918609,1745545220427,-500.0,0.00050958,30]
[358918610,1745545220470,-814.96,0.00050958,30]
[358918611,1745545220512,-500.0,0.00050958,30]
[358918612,1745545220555,-3013.74,0.00050958,30]
[358918613,1745545220598,-500.0,0.00050958,30]
[358918614,1745545220641,-500.0,0.00050958,30]
[358918615,1745545220684,-505.96,0.00050958,30]
[358918616,1745545220727,-802.86,0.00050958,30]
[358918617,1745545220771,-500.0,0.00050958,30]
[358918618,1745545220814,-831.63,0.00050958,30]
[358918619,1745545220857,-477.55755709,0.00050958,30]
[358918620,1745545220900,-400.62111966,0.00050958,30]
[358918621,1745545220942,-500.0,0.00050958,30]
[358918622,1745545220983,-500.0,0.00050958,30]
[358918623,1745545221026,-500.0,0.00050958,30]
[358918624,1745545221069,-1709.19,0.00050958,30]
[358918625,1745545221114,-500.0,0.00050958,30]
[358918626,1745545221158,-641.42,0.00050958,30]
[358918627,1745545221201,-500.0,0.00050958,30]
[358918628,1745545221450,-500.0,0.00050958,30]
[358918629,1745545221496,-661.96,0.00050958,30]
[358918630,1745545221543,-500.0,0.00050958,30]
[358918631,1745545221591,-500.0,0.00050958,30]
[358918632,1745545221635,-500.0,0.00050958,30]
[358918633,1745545221680,-500.0,0.00050958,30]
[358918634,1745545221724,-612.26,0.00050958,30]
[358918635,1745545221769,-500.0,0.00050958,30]
[358918636,1745545221813,-500.0,0.00050958,30]
[358918637,1745545221857,-500.0,0.00050958,30]
[358918638,1745545221901,-1976.56,0.00050958,30]
[358918639,1745545221946,-653.33,0.00050958,30]
[358918640,1745545221989,-500.0,0.00050958,30]
[358918641,1745545222030,-596.77,0.00050958,30]
[358918642,1745545222071,-500.0,0.00050958,30]
[358918643,1745545222111,-1112.33,0.00050958,30]
[358918644,1745545222152,-500.0,0.00050958,30]
[358918645,1745545222193,-841.68,0.00050958,30]
[358918646,1745545222234,-823.66,0.00050958,30]
[358918647,1745545222275,-500.0,0.00050958,30]
[358918648,1745545222316,-500.0,0.00050958,30]
[358918649,1745545222357,-500.0,0.00050958,30]
[358918650,1745545222397,-1808.75,0.00050958,30]
[358918651,1745545222438,-500.0,0.00050958,30]
[358918652,1745545222481,-1821.84,0.00050958,30]
[358918653,1745545222524,-1313.12,0.00050958,30]
[358918654,1745545222565,-500.0,0.00050958,30]
[358918655,1745545222607,-607.64256076,0.00050958,30]
[358918656,1745545222648,-500.0,0.00050958,30]
[358918657,1745545222690,-672.15,0.00050958,30]
[358918658,1745545222731,-1880.56,0.00050958,30]
[358918659,1745545222771,-893.18,0.00050958,30]
[358918660,1745545222812,-500.0,0.00050958,30]
[358918661,1745545222856,-500.0,0.00050958,30]
[358918662,1745545222898,-500.0,0.00050958,30]
[358918663,1745545222940,-500.0,0.00050958,30]
[358918664,1745545222981,-500.0,0.00050958,30]
[358918665,1745545223020,-500.0,0.00050958,30]
[358918666,1745545223060,-500.0,0.00050958,30]
[358918667,1745545223100,-500.0,0.00050958,30]
[358918668,1745545223140,-500.0,0.00050958,30]
[358918669,1745545223181,-500.0,0.00050958,30]
[358918670,1745545223222,-1073.32,0.00050958,30]
[358918671,1745545223264,-1524.36,0.00050958,30]
[358918672,1745545223306,-500.0,0.00050958,30]
[358918673,1745545223348,-1015.49,0.00050958,30]
[358918674,1745545223392,-557.66,0.00050958,30]
[358918675,1745545223435,-500.0,0.00050958,30]
[358918676,1745545223479,-966.47,0.00050958,30]
[358918677,1745545223527,-500.0,0.00050958,30]
[358918678,1745545223574,-500.0,0.00050958,30]
[358918679,1745545223622,-2016.33,0.00050958,30]
[358918680,1745545223671,-500.0,0.00050958,30]
[358918681,1745545223719,-936.5,0.00050958,30]
[358918682,1745545223767,-500.0,0.00050958,30]
[358918683,1745545223814,-2103.74,0.00050958,30]
[358918684,1745545223861,-500.0,0.00050958,30]
[358918685,1745545223906,-1286.01,0.00050958,30]
[358918686,1745545223950,-500.0,0.00050958,30]
[358918687,1745545223992,-500.0,0.00050958,30]
[358918688,1745545224037,-500.0,0.00050958,30]
[358918689,1745545224079,-500.0,0.00050958,30]
[358918690,1745545224124,-500.0,0.00050958,30]
[358918691,1745545224169,-664.11,0.00050958,30]
[358918692,1745545224214,-152.01556992,0.00050958,30]
[358918693,1745545224258,-500.0,0.00050958,30]
[358918694,1745545224300,-500.0,0.00050958,30]
[358918695,1745545224340,-500.0,0.00050958,30]
[358918696,1745545224379,-796.66,0.00050958,30]
[358918697,1745545224418,-500.0,0.00050958,30]
[358918698,1745545224458,-500.0,0.00050958,30]
[358918699,1745545224499,-500.0,0.00050958,30]
[358918700,1745545224540,-500.0,0.00050958,30]
[358918701,1745545224580,-500.0,0.00050958,30]
[358918702,1745545224623,-2669.76,0.00050958,30]
[358918703,1745545224663,-1999.03,0.00050958,30]